[Event "Early-Titled-Tuesday-Blitz-October-10-2023"]
[Site "Chess.com"]
[Date "2023.10.10"]
[Round "3"]
[White "Duhless"]
[Black "IamSchrodingersCat"]
[Result "1-0"]
[WhiteElo "2932"]
[BlackElo "2518"]
[TimeControl "180+1"]
[EndTime "8:28:35 PDT"]
[Termination "Duhless won on time"]

1. c4 {[%clk 0:03:00.9]} 1... Nf6 {[%clk 0:02:59.2]} 2. Nc3 {[%clk 0:02:59.1]}
2... g6 {[%clk 0:02:58.9]} 3. e4 {[%clk 0:02:55.5]} 3... d6 {[%clk 0:02:58.7]}
4. d4 {[%clk 0:02:55.7]} 4... Bg7 {[%clk 0:02:58.8]} 5. f4 {[%clk 0:02:55.6]}
5... c5 {[%clk 0:02:56.3]} 6. d5 {[%clk 0:02:55.3]} 6... O-O {[%clk 0:02:52.4]}
7. Nf3 {[%clk 0:02:55.1]} 7... e6 {[%clk 0:02:50.8]} 8. dxe6 {[%clk 0:02:54.6]}
8... Bxe6 {[%clk 0:02:46.2]} 9. Bd3 {[%clk 0:02:53.8]} 9... Bg4 {[%clk
0:02:43.4]} 10. O-O {[%clk 0:02:51.2]} 10... Nc6 {[%clk 0:02:42.8]} 11. Be3
{[%clk 0:02:50.8]} 11... Nd4 {[%clk 0:02:16.7]} 12. Bxd4 {[%clk 0:02:39]} 12...
cxd4 {[%clk 0:02:17.6]} 13. Ne2 {[%clk 0:02:39.3]} 13... Re8 {[%clk 0:01:51.6]}
14. Ng3 {[%clk 0:02:38.5]} 14... Qb6 {[%clk 0:01:44.6]} 15. h3 {[%clk
0:02:17.5]} 15... Bxf3 {[%clk 0:01:42.6]} 16. Qxf3 {[%clk 0:02:18.4]} 16... Nd7
{[%clk 0:01:08.1]} 17. Rab1 {[%clk 0:02:08.3]} 17... a5 {[%clk 0:01:05.2]} 18.
Kh1 {[%clk 0:01:58.5]} 18... a4 {[%clk 0:00:58.3]} 19. e5 {[%clk 0:01:50.4]}
19... dxe5 {[%clk 0:00:51.1]} 20. f5 {[%clk 0:01:49.9]} 20... e4 {[%clk
0:00:44]} 21. Nxe4 {[%clk 0:01:48.4]} 21... Ne5 {[%clk 0:00:43.9]} 22. Qg3
{[%clk 0:01:48.1]} 22... Nxd3 {[%clk 0:00:21.9]} 23. Qxd3 {[%clk 0:01:47.6]}
23... Qc6 {[%clk 0:00:22.6]} 24. Rbe1 {[%clk 0:01:32.7]} 24... Rad8 {[%clk
0:00:22.6]} 25. Ng5 {[%clk 0:01:12.4]} 25... Rxe1 {[%clk 0:00:18.9]} 26. Rxe1
{[%clk 0:01:12.5]} 26... Qf6 {[%clk 0:00:18.7]} 27. Ne4 {[%clk 0:00:45.7]} 27...
Qxf5 {[%clk 0:00:17.3]} 28. Rf1 {[%clk 0:00:46.4]} 28... Qd7 {[%clk 0:00:15.5]}
29. c5 {[%clk 0:00:44.4]} 29... f5 {[%clk 0:00:11.5]} 30. Nd6 {[%clk 0:00:42.5]}
30... Qe6 {[%clk 0:00:10.6]} 31. Nxb7 {[%clk 0:00:40.3]} 31... Rb8 {[%clk
0:00:08.7]} 32. Nd6 {[%clk 0:00:30.8]} 32... Rxb2 {[%clk 0:00:08.5]} 33. c6
{[%clk 0:00:31]} 33... Qxd6 {[%clk 0:00:06.1]} 34. Qc4+ {[%clk 0:00:30.8]} 34...
Kh8 {[%clk 0:00:04.5]} 35. c7 {[%clk 0:00:31]} 35... Rb8 {[%clk 0:00:03.3]} 36.
cxb8=Q+ {[%clk 0:00:21.8]} 36... Qxb8 {[%clk 0:00:04.2]} 37. Rc1 {[%clk
0:00:21.4]} 37... h5 {[%clk 0:00:03.6]} 38. Qc8+ {[%clk 0:00:17.5]} 38... Qxc8
{[%clk 0:00:04]} 39. Rxc8+ {[%clk 0:00:17.7]} 39... Kh7 {[%clk 0:00:04.7]} 40.
Ra8 {[%clk 0:00:17.4]} 40... Kh6 {[%clk 0:00:02.3]} 41. Rxa4 {[%clk 0:00:16.6]}
41... Kg5 {[%clk 0:00:03]} 42. Kg1 {[%clk 0:00:15.7]} 42... Kf4 {[%clk
0:00:03.4]} 43. Kf2 {[%clk 0:00:15.6]} 43... Be5 {[%clk 0:00:02.9]} 44. Ke2
{[%clk 0:00:13.3]} 44... Ke4 {[%clk 0:00:03.5]} 45. Ra8 {[%clk 0:00:12.9]} 45...
g5 {[%clk 0:00:02.8]} 46. a4 {[%clk 0:00:12.5]} 46... d3+ {[%clk 0:00:03]} 47.
Kd1 {[%clk 0:00:12.4]} 47... g4 {[%clk 0:00:02.1]} 48. hxg4 {[%clk 0:00:12.3]}
48... hxg4 {[%clk 0:00:03]} 49. a5 {[%clk 0:00:12.6]} 49... f4 {[%clk
0:00:03.2]} 50. a6 {[%clk 0:00:12.8]} 1-0

[Event "Early-Titled-Tuesday-Blitz-October-10-2023"]
[Site "Chess.com"]
[Date "2023.10.10"]
[Round "3"]
[White "ajedrezhoy"]
[Black "LUISMIGUELOV"]
[Result "1-0"]
[WhiteElo "2372"]
[BlackElo "2129"]
[TimeControl "180+1"]
[EndTime "8:28:35 PDT"]
[Termination "ajedrezhoy won by resignation"]

1. c4 {[%clk 0:02:57.1]} 1... e6 {[%clk 0:02:36.4]} 2. Nf3 {[%clk 0:02:55.5]}
2... d5 {[%clk 0:02:35.2]} 3. e3 {[%clk 0:02:54]} 3... Nf6 {[%clk 0:02:34]} 4.
b3 {[%clk 0:02:48.1]} 4... Be7 {[%clk 0:02:33.3]} 5. d4 {[%clk 0:02:43.2]} 5...
O-O {[%clk 0:02:33.1]} 6. Bd3 {[%clk 0:02:42.1]} 6... c6 {[%clk 0:02:32.6]} 7.
O-O {[%clk 0:02:40.6]} 7... Ne4 {[%clk 0:02:32.4]} 8. Ba3 {[%clk 0:02:36.2]}
8... f5 {[%clk 0:02:30.8]} 9. Bxe7 {[%clk 0:02:34.6]} 9... Qxe7 {[%clk
0:02:30.7]} 10. Ne5 {[%clk 0:02:32.2]} 10... Nd7 {[%clk 0:02:29]} 11. f3 {[%clk
0:02:09.8]} 11... Nef6 {[%clk 0:02:21.6]} 12. Nd2 {[%clk 0:02:02.4]} 12... Nxe5
{[%clk 0:02:21.3]} 13. dxe5 {[%clk 0:02:01.9]} 13... Nd7 {[%clk 0:02:21.2]} 14.
f4 {[%clk 0:02:02]} 14... Qc5 {[%clk 0:02:19.8]} 15. Qe2 {[%clk 0:01:55.6]}
15... b6 {[%clk 0:02:10]} 16. Nf3 {[%clk 0:01:47.6]} 16... Bb7 {[%clk
0:02:08.4]} 17. Rac1 {[%clk 0:01:26.4]} 17... Qe7 {[%clk 0:02:07.2]} 18. Nd4
{[%clk 0:01:12.9]} 18... c5 {[%clk 0:02:02.8]} 19. Nb5 {[%clk 0:01:11.4]} 19...
dxc4 {[%clk 0:02:02.5]} 20. Bxc4 {[%clk 0:01:07.7]} 20... a6 {[%clk 0:01:57.5]}
21. Nd6 {[%clk 0:01:06.9]} 21... Bd5 {[%clk 0:01:57.1]} 22. Bxd5 {[%clk
0:00:59.9]} 22... exd5 {[%clk 0:01:56.1]} 23. Rfd1 {[%clk 0:00:59.9]} 23... Nxe5
{[%clk 0:01:50.1]} 24. fxe5 {[%clk 0:00:57.4]} 24... Qxe5 {[%clk 0:01:50.1]} 25.
Nb7 {[%clk 0:00:48.5]} 25... Ra7 {[%clk 0:01:49.4]} 26. Nxc5 {[%clk 0:00:47.3]}
26... bxc5 {[%clk 0:01:48.3]} 27. Rxc5 {[%clk 0:00:47.2]} 27... Rd7 {[%clk
0:01:44.1]} 28. Ra5 {[%clk 0:00:32.4]} 28... Re8 {[%clk 0:01:41.6]} 29. Rxa6
{[%clk 0:00:27.2]} 29... Qxe3+ {[%clk 0:01:41.3]} 30. Qxe3 {[%clk 0:00:27.4]}
30... Rxe3 {[%clk 0:01:41.7]} 31. Kf2 {[%clk 0:00:26.7]} 31... d4 {[%clk
0:01:41.5]} 32. Rd2 {[%clk 0:00:21.8]} 32... f4 {[%clk 0:01:40.2]} 33. Ra4
{[%clk 0:00:19.8]} 33... Rc3 {[%clk 0:01:33.7]} 34. Rb4 {[%clk 0:00:18]} 34...
d3 {[%clk 0:01:32.5]} 35. a4 {[%clk 0:00:15.2]} 35... Rc2 {[%clk 0:01:31.4]} 36.
Rxc2 {[%clk 0:00:14.9]} 36... dxc2 {[%clk 0:01:31.3]} 37. Rc4 {[%clk 0:00:15.2]}
37... Rd2+ {[%clk 0:01:29.9]} 38. Kf3 {[%clk 0:00:15.1]} 38... g5 {[%clk
0:01:27.2]} 39. a5 {[%clk 0:00:14.8]} 39... h5 {[%clk 0:01:22]} 40. b4 {[%clk
0:00:14.6]} 40... g4+ {[%clk 0:01:19.8]} 41. Kxf4 {[%clk 0:00:14.4]} 41... Rxg2
{[%clk 0:01:20]} 42. a6 {[%clk 0:00:13.8]} 42... Rxh2 {[%clk 0:01:16.4]} 43. b5
{[%clk 0:00:13.6]} 43... c1=Q+ {[%clk 0:01:10.6]} 44. Rxc1 {[%clk 0:00:12.9]}
44... Ra2 {[%clk 0:01:11]} 45. Rb1 {[%clk 0:00:09.8]} 45... Ra4+ {[%clk
0:01:10.7]} 46. Kg3 {[%clk 0:00:09.5]} 46... Ra3+ {[%clk 0:01:10.8]} 47. Kg2
{[%clk 0:00:09.5]} 47... h4 {[%clk 0:01:09.6]} 48. Rb2 {[%clk 0:00:08.2]} 48...
h3+ {[%clk 0:01:08.6]} 49. Kh2 {[%clk 0:00:08.1]} 49... Kf7 {[%clk 0:01:06.2]}
50. b6 {[%clk 0:00:08.1]} 50... Rxa6 {[%clk 0:01:05.9]} 51. b7 {[%clk
0:00:08.3]} 1-0

[Event "Early-Titled-Tuesday-Blitz-October-10-2023"]
[Site "Chess.com"]
[Date "2023.10.10"]
[Round "3"]
[White "TregubovP"]
[Black "KorolDimitriy75"]
[Result "1/2-1/2"]
[WhiteElo "2581"]
[BlackElo "2388"]
[TimeControl "180+1"]
[EndTime "8:28:36 PDT"]
[Termination "Game drawn by repetition"]

1. e4 {[%clk 0:03:00.9]} 1... c5 {[%clk 0:02:57.9]} 2. Nf3 {[%clk 0:03:00.7]}
2... d6 {[%clk 0:02:57.8]} 3. Bb5+ {[%clk 0:03:00.7]} 3... Nd7 {[%clk
0:02:57.5]} 4. Ba4 {[%clk 0:03:00.5]} 4... Nf6 {[%clk 0:02:57.1]} 5. O-O {[%clk
0:03:00.2]} 5... g6 {[%clk 0:02:56.8]} 6. Re1 {[%clk 0:02:59.1]} 6... Bg7 {[%clk
0:02:55.8]} 7. c3 {[%clk 0:02:59.8]} 7... O-O {[%clk 0:02:44]} 8. d4 {[%clk
0:03:00.3]} 8... cxd4 {[%clk 0:02:36.6]} 9. cxd4 {[%clk 0:03:00.3]} 9... Nb6
{[%clk 0:02:36.4]} 10. Bb3 {[%clk 0:02:54.6]} 10... Bg4 {[%clk 0:02:35.3]} 11.
h3 {[%clk 0:02:49.5]} 11... Bxf3 {[%clk 0:02:33.8]} 12. Qxf3 {[%clk 0:02:49.6]}
12... d5 {[%clk 0:02:28.2]} 13. e5 {[%clk 0:02:43.3]} 13... Ne4 {[%clk
0:02:27.6]} 14. Nd2 {[%clk 0:02:43.5]} 14... Nxd2 {[%clk 0:02:10.8]} 15. Bxd2
{[%clk 0:02:43.7]} 15... Rc8 {[%clk 0:01:46.4]} 16. Ba5 {[%clk 0:02:42.1]} 16...
e6 {[%clk 0:01:44.2]} 17. Rac1 {[%clk 0:02:00.4]} 17... Qd7 {[%clk 0:01:39.8]}
18. Qd3 {[%clk 0:01:46.2]} 18... Rc7 {[%clk 0:01:04.5]} 19. Rc5 {[%clk
0:01:05.3]} 19... Rfc8 {[%clk 0:00:57.3]} 20. Rec1 {[%clk 0:01:05]} 20... Bxe5
{[%clk 0:00:43.9]} 21. Rxc7 {[%clk 0:00:44.6]} 21... Rxc7 {[%clk 0:00:30.7]} 22.
Rxc7 {[%clk 0:00:41.8]} 22... Bxc7 {[%clk 0:00:31.6]} 23. Bd2 {[%clk 0:00:41.6]}
23... Qc6 {[%clk 0:00:23.4]} 24. g3 {[%clk 0:00:36.4]} 24... Nc4 {[%clk
0:00:20.8]} 25. Bc1 {[%clk 0:00:31.5]} 25... Ne5 {[%clk 0:00:15.8]} 26. Qd1
{[%clk 0:00:21.4]} 26... Nf3+ {[%clk 0:00:15.1]} 27. Kg2 {[%clk 0:00:21.6]}
27... Nxd4 {[%clk 0:00:14.9]} 28. Qxd4 {[%clk 0:00:22]} 28... Qxc1 {[%clk
0:00:14.9]} 29. Qxa7 {[%clk 0:00:22.7]} 29... Qxb2 {[%clk 0:00:11.1]} 30. Qxb7
{[%clk 0:00:21.9]} 30... Be5 {[%clk 0:00:11.2]} 31. Qc8+ {[%clk 0:00:20.9]}
31... Kg7 {[%clk 0:00:11.3]} 32. Qc2 {[%clk 0:00:21.6]} 32... Qa3 {[%clk
0:00:08.7]} 33. h4 {[%clk 0:00:20.1]} 33... h5 {[%clk 0:00:07.8]} 34. Qe2 {[%clk
0:00:19.6]} 34... Bd4 {[%clk 0:00:06.5]} 35. Qd2 {[%clk 0:00:19.3]} 35... Qc5
{[%clk 0:00:06.5]} 36. Bd1 {[%clk 0:00:18.6]} 36... Bc3 {[%clk 0:00:06.4]} 37.
Qd3 {[%clk 0:00:17]} 37... e5 {[%clk 0:00:06.5]} 38. a4 {[%clk 0:00:16.6]} 38...
e4 {[%clk 0:00:06.4]} 39. Qb5 {[%clk 0:00:16.5]} 39... Qxb5 {[%clk 0:00:04.5]}
40. axb5 {[%clk 0:00:16.4]} 40... Ba5 {[%clk 0:00:03.7]} 41. Bb3 {[%clk
0:00:16.3]} 41... d4 {[%clk 0:00:03.8]} 42. Bd5 {[%clk 0:00:16]} 42... f5 {[%clk
0:00:04.2]} 43. f3 {[%clk 0:00:14.6]} 43... e3 {[%clk 0:00:02.7]} 44. Bc4 {[%clk
0:00:14.8]} 44... Kf6 {[%clk 0:00:02.5]} 45. f4 {[%clk 0:00:11.1]} 45... Kg7
{[%clk 0:00:01.1]} 46. Kf3 {[%clk 0:00:11.3]} 46... Kf6 {[%clk 0:00:01.7]} 47.
Ke2 {[%clk 0:00:11.4]} 47... Bb6 {[%clk 0:00:02.3]} 48. Kf3 {[%clk 0:00:11.3]}
48... Bc5 {[%clk 0:00:02.4]} 49. Ke2 {[%clk 0:00:11.5]} 49... Bb6 {[%clk
0:00:03.3]} 50. Kf3 {[%clk 0:00:11.7]} 50... Bc5 {[%clk 0:00:03.9]} 51. Ke2
{[%clk 0:00:12.1]} 51... Bb6 {[%clk 0:00:04.7]} 1/2-1/2

[Event "Early-Titled-Tuesday-Blitz-October-10-2023"]
[Site "Chess.com"]
[Date "2023.10.10"]
[Round "3"]
[White "Djager97"]
[Black "BJthechessgod"]
[Result "0-1"]
[WhiteElo "2570"]
[BlackElo "2391"]
[TimeControl "180+1"]
[EndTime "8:28:36 PDT"]
[Termination "BJthechessgod won by resignation"]

1. e4 {[%clk 0:03:00.9]} 1... c5 {[%clk 0:02:59.4]} 2. Nc3 {[%clk 0:02:59.4]}
2... Nc6 {[%clk 0:02:58.9]} 3. Nge2 {[%clk 0:02:59.1]} 3... e6 {[%clk
0:02:57.8]} 4. g3 {[%clk 0:02:58.8]} 4... Nf6 {[%clk 0:02:51.3]} 5. Bg2 {[%clk
0:02:57.9]} 5... Qc7 {[%clk 0:02:49.8]} 6. O-O {[%clk 0:02:56.1]} 6... Be7
{[%clk 0:02:49.8]} 7. d3 {[%clk 0:02:54.8]} 7... a6 {[%clk 0:02:49.9]} 8. a4
{[%clk 0:02:52.4]} 8... O-O {[%clk 0:02:49.2]} 9. h3 {[%clk 0:02:51.9]} 9... Rb8
{[%clk 0:02:42.7]} 10. f4 {[%clk 0:02:49.8]} 10... d6 {[%clk 0:02:43.2]} 11. g4
{[%clk 0:02:49.3]} 11... b5 {[%clk 0:02:42.3]} 12. axb5 {[%clk 0:02:48.3]} 12...
axb5 {[%clk 0:02:43.2]} 13. g5 {[%clk 0:02:39.7]} 13... Nd7 {[%clk 0:02:43.4]}
14. Ng3 {[%clk 0:02:35.7]} 14... Nd4 {[%clk 0:01:57.1]} 15. f5 {[%clk
0:02:23.5]} 15... d5 {[%clk 0:01:48.1]} 16. Bf4 {[%clk 0:02:00.9]} 16... Bd6
{[%clk 0:01:28.8]} 17. Nce2 {[%clk 0:01:42.7]} 17... Nxe2+ {[%clk 0:01:16.8]}
18. Nxe2 {[%clk 0:01:43.6]} 18... dxe4 {[%clk 0:00:54]} 19. dxe4 {[%clk
0:01:38.6]} 19... Bxf4 {[%clk 0:00:49.8]} 20. Nxf4 {[%clk 0:01:39.5]} 20... exf5
{[%clk 0:00:45.8]} 21. exf5 {[%clk 0:01:36.1]} 21... Qe5 {[%clk 0:00:46.4]} 22.
Nd5 {[%clk 0:00:45.3]} 22... Qxb2 {[%clk 0:00:43.6]} 23. f6 {[%clk 0:00:45.3]}
23... Qd4+ {[%clk 0:00:20.7]} 24. Qxd4 {[%clk 0:00:44.2]} 24... cxd4 {[%clk
0:00:21.6]} 25. Ne7+ {[%clk 0:00:38.4]} 25... Kh8 {[%clk 0:00:21.7]} 26. Nc6
{[%clk 0:00:39.2]} 26... Rb6 {[%clk 0:00:17.7]} 27. fxg7+ {[%clk 0:00:40.1]}
27... Kxg7 {[%clk 0:00:17.6]} 28. Nxd4 {[%clk 0:00:41]} 28... Bb7 {[%clk
0:00:15.2]} 29. Ra7 {[%clk 0:00:21.2]} 29... Bxg2 {[%clk 0:00:14.9]} 30. Kxg2
{[%clk 0:00:22.1]} 30... Ne5 {[%clk 0:00:13.4]} 31. Nf5+ {[%clk 0:00:13.8]}
31... Kg6 {[%clk 0:00:10.5]} 32. h4 {[%clk 0:00:13.2]} 32... Rd8 {[%clk
0:00:09.2]} 33. Ne7+ {[%clk 0:00:08.4]} 33... Kh5 {[%clk 0:00:09.1]} 34. Rf4
{[%clk 0:00:03.3]} 34... Rd2+ {[%clk 0:00:08.8]} 35. Kg3 {[%clk 0:00:03.8]}
35... Rxc2 {[%clk 0:00:09]} 36. Nd5 {[%clk 0:00:03.7]} 36... Rd6 {[%clk
0:00:08.3]} 37. Nf6+ {[%clk 0:00:04.2]} 37... Kg6 {[%clk 0:00:04.9]} 38. h5+
{[%clk 0:00:03.6]} 38... Kxg5 {[%clk 0:00:05.6]} 39. Ne4+ {[%clk 0:00:03.9]}
39... Kxh5 {[%clk 0:00:06]} 40. Nxd6 {[%clk 0:00:04.5]} 40... Rc3+ {[%clk
0:00:06.1]} 41. Kg2 {[%clk 0:00:04.8]} 41... b4 {[%clk 0:00:05.1]} 42. Rf5+
{[%clk 0:00:03.6]} 42... Kg4 {[%clk 0:00:05.2]} 43. Rxe5 {[%clk 0:00:04.2]}
43... Rc2+ {[%clk 0:00:05.7]} 44. Kf1 {[%clk 0:00:04.6]} 44... b3 {[%clk
0:00:06.3]} 45. Rb7 {[%clk 0:00:04.7]} 45... b2 {[%clk 0:00:06.3]} 46. Re1
{[%clk 0:00:04.5]} 46... Kf3 {[%clk 0:00:06.8]} 47. Rb1 {[%clk 0:00:04.3]} 47...
Rc1+ {[%clk 0:00:06.7]} 0-1

[Event "Early-Titled-Tuesday-Blitz-October-10-2023"]
[Site "Chess.com"]
[Date "2023.10.10"]
[Round "3"]
[White "MatthewG-p4p"]
[Black "draksbg"]
[Result "1-0"]
[WhiteElo "2836"]
[BlackElo "2599"]
[TimeControl "180+1"]
[EndTime "8:28:37 PDT"]
[Termination "MatthewG-p4p won by resignation"]

1. e4 {[%clk 0:03:00.9]} 1... c5 {[%clk 0:03:00]} 2. c3 {[%clk 0:03:00.5]} 2...
d5 {[%clk 0:02:57.5]} 3. exd5 {[%clk 0:03:01.4]} 3... Qxd5 {[%clk 0:02:58.3]} 4.
d4 {[%clk 0:03:02.1]} 4... g6 {[%clk 0:02:57.2]} 5. Nf3 {[%clk 0:02:53.1]} 5...
Bg7 {[%clk 0:02:55.6]} 6. Nbd2 {[%clk 0:02:33.8]} 6... cxd4 {[%clk 0:02:52.1]}
7. Bc4 {[%clk 0:02:32.7]} 7... Qd8 {[%clk 0:02:50.3]} 8. Nxd4 {[%clk 0:02:17.6]}
8... Nf6 {[%clk 0:02:47.5]} 9. O-O {[%clk 0:02:12.1]} 9... O-O {[%clk
0:02:47.5]} 10. Re1 {[%clk 0:02:12.8]} 10... Nbd7 {[%clk 0:02:40.3]} 11. N2f3
{[%clk 0:02:12.1]} 11... Nb6 {[%clk 0:02:32.4]} 12. Bb3 {[%clk 0:02:12.4]} 12...
Bd7 {[%clk 0:02:31.2]} 13. Ne5 {[%clk 0:02:10.9]} 13... Be8 {[%clk 0:02:27]} 14.
Qf3 {[%clk 0:02:10.7]} 14... Qc8 {[%clk 0:02:22.2]} 15. Bg5 {[%clk 0:02:07.5]}
15... Nbd7 {[%clk 0:02:19.1]} 16. Nxd7 {[%clk 0:02:02.3]} 16... Qxd7 {[%clk
0:02:19]} 17. Ne6 {[%clk 0:02:02.3]} 17... Qb5 {[%clk 0:02:08.6]} 18. Nxf8
{[%clk 0:00:37.8]} 18... Qxg5 {[%clk 0:02:07]} 19. Qxb7 {[%clk 0:00:38.4]} 19...
Rd8 {[%clk 0:01:57.4]} 20. Qxe7 {[%clk 0:00:38.3]} 20... Rb8 {[%clk 0:01:16.1]}
21. Qc7 {[%clk 0:00:32.6]} 21... Ra8 {[%clk 0:00:48.6]} 22. Qb7 {[%clk
0:00:22.3]} 22... Rd8 {[%clk 0:00:40.1]} 23. Ne6 {[%clk 0:00:14.5]} 23... fxe6
{[%clk 0:00:39]} 24. Bxe6+ {[%clk 0:00:15.4]} 24... Kh8 {[%clk 0:00:38.3]} 25.
Rad1 {[%clk 0:00:16]} 25... Rxd1 {[%clk 0:00:36.4]} 26. Rxd1 {[%clk 0:00:16.9]}
26... Qe5 {[%clk 0:00:30.6]} 27. Bf7 {[%clk 0:00:13]} 27... Qe2 {[%clk
0:00:28.4]} 28. Rf1 {[%clk 0:00:07.7]} 28... h5 {[%clk 0:00:21.6]} 29. Bxe8
{[%clk 0:00:07.2]} 29... Qxe8 {[%clk 0:00:22.5]} 30. Qxa7 {[%clk 0:00:07.4]}
30... Qe2 {[%clk 0:00:22.8]} 31. Qb8+ {[%clk 0:00:06.8]} 31... Kh7 {[%clk
0:00:22.7]} 32. h3 {[%clk 0:00:07.5]} 32... Ne4 {[%clk 0:00:22.8]} 33. a4 {[%clk
0:00:07.8]} 33... Nd2 {[%clk 0:00:23]} 34. Ra1 {[%clk 0:00:07.3]} 34... Ne4
{[%clk 0:00:22]} 35. Qb6 {[%clk 0:00:07.7]} 35... Bf8 {[%clk 0:00:20.8]} 36.
Qc7+ {[%clk 0:00:06.5]} 36... Kh6 {[%clk 0:00:19.3]} 37. Qf4+ {[%clk 0:00:06.9]}
37... Kh7 {[%clk 0:00:19.7]} 38. Qxf8 {[%clk 0:00:06.8]} 38... Qxb2 {[%clk
0:00:18.2]} 39. Qe7+ {[%clk 0:00:05.8]} 39... Kh6 {[%clk 0:00:17.7]} 40. Rf1
{[%clk 0:00:06.5]} 40... Nxc3 {[%clk 0:00:18.1]} 41. Qe3+ {[%clk 0:00:06.6]}
41... Kh7 {[%clk 0:00:18.6]} 42. a5 {[%clk 0:00:07.4]} 42... Nd5 {[%clk
0:00:18.9]} 43. Qf3 {[%clk 0:00:07]} 43... Nb4 {[%clk 0:00:18]} 44. Qb7+ {[%clk
0:00:06.2]} 44... Kh6 {[%clk 0:00:18.6]} 45. a6 {[%clk 0:00:07.1]} 45... Qd4
{[%clk 0:00:17.1]} 46. a7 {[%clk 0:00:07.1]} 1-0

[Event "Early-Titled-Tuesday-Blitz-October-10-2023"]
[Site "Chess.com"]
[Date "2023.10.10"]
[Round "3"]
[White "Doomfist26"]
[Black "BlueWizzard"]
[Result "0-1"]
[WhiteElo "2608"]
[BlackElo "2920"]
[TimeControl "180+1"]
[EndTime "8:28:37 PDT"]
[Termination "BlueWizzard won by resignation"]

1. e4 {[%clk 0:03:00.9]} 1... g6 {[%clk 0:03:00.4]} 2. d4 {[%clk 0:02:59.9]}
2... d5 {[%clk 0:03:01.1]} 3. e5 {[%clk 0:02:57]} 3... c5 {[%clk 0:03:00.9]} 4.
c3 {[%clk 0:02:56.6]} 4... Nc6 {[%clk 0:03:00.4]} 5. Nf3 {[%clk 0:02:56.8]} 5...
cxd4 {[%clk 0:02:59.8]} 6. cxd4 {[%clk 0:02:56.7]} 6... Bg4 {[%clk 0:03:00.5]}
7. Be2 {[%clk 0:02:49]} 7... Nh6 {[%clk 0:02:57.3]} 8. O-O {[%clk 0:02:47.8]}
8... e6 {[%clk 0:02:47]} 9. Nc3 {[%clk 0:02:41.4]} 9... Nf5 {[%clk 0:02:45.7]}
10. Ne1 {[%clk 0:02:09]} 10... h5 {[%clk 0:02:02.8]} 11. Nc2 {[%clk 0:01:53.6]}
11... Bxe2 {[%clk 0:01:58.7]} 12. Nxe2 {[%clk 0:01:53.4]} 12... Rc8 {[%clk
0:01:52.8]} 13. a3 {[%clk 0:01:50.5]} 13... a5 {[%clk 0:01:52.3]} 14. Bd2 {[%clk
0:01:44.8]} 14... h4 {[%clk 0:01:49]} 15. h3 {[%clk 0:01:42.9]} 15... Qb6 {[%clk
0:01:46.3]} 16. b4 {[%clk 0:01:34.6]} 16... a4 {[%clk 0:01:38.4]} 17. Bg5 {[%clk
0:01:23.4]} 17... Na7 {[%clk 0:01:31.6]} 18. Bf6 {[%clk 0:01:18.8]} 18... Bg7
{[%clk 0:01:29.8]} 19. Ne3 {[%clk 0:01:16.9]} 19... Bxf6 {[%clk 0:01:29.1]} 20.
exf6 {[%clk 0:01:17]} 20... Nb5 {[%clk 0:01:20.9]} 21. Qxa4 {[%clk 0:01:09.8]}
21... O-O {[%clk 0:01:20.4]} 22. Nxf5 {[%clk 0:01:05.4]} 22... exf5 {[%clk
0:01:20.6]} 23. Qd1 {[%clk 0:01:05]} 23... Qxf6 {[%clk 0:01:19.6]} 24. a4 {[%clk
0:01:02.5]} 24... Nc7 {[%clk 0:01:11.5]} 25. Rc1 {[%clk 0:01:00.9]} 25... Ne6
{[%clk 0:01:10.7]} 26. Qd3 {[%clk 0:01:00.1]} 26... Qe7 {[%clk 0:01:07.6]} 27.
Qb3 {[%clk 0:00:56.2]} 27... Kh7 {[%clk 0:00:59.6]} 28. b5 {[%clk 0:00:51.2]}
28... Qg5 {[%clk 0:00:59.5]} 29. Rxc8 {[%clk 0:00:36.2]} 29... Rxc8 {[%clk
0:01:00.4]} 30. Qxd5 {[%clk 0:00:36.6]} 30... Rc2 {[%clk 0:00:52.6]} 31. Qf3
{[%clk 0:00:33.5]} 31... Qd2 {[%clk 0:00:50.4]} 32. d5 {[%clk 0:00:30.8]} 32...
Qxe2 {[%clk 0:00:36.3]} 33. Qxe2 {[%clk 0:00:27.9]} 33... Rxe2 {[%clk
0:00:37.2]} 34. dxe6 {[%clk 0:00:28.6]} 34... Rxe6 {[%clk 0:00:35.9]} 35. Rc1
{[%clk 0:00:26.2]} 35... Kg7 {[%clk 0:00:34.3]} 36. Rc7 {[%clk 0:00:24]} 36...
b6 {[%clk 0:00:34.8]} 37. Rc6 {[%clk 0:00:23.1]} 37... Re4 {[%clk 0:00:35.2]}
38. Rxb6 {[%clk 0:00:23]} 38... Rxa4 {[%clk 0:00:35.8]} 39. Rb7 {[%clk
0:00:22.1]} 39... Ra2 {[%clk 0:00:35]} 40. b6 {[%clk 0:00:19.9]} 40... Rb2
{[%clk 0:00:35.4]} 41. Kf1 {[%clk 0:00:20.2]} 41... g5 {[%clk 0:00:32.6]} 42.
Rb8 {[%clk 0:00:19.6]} 42... g4 {[%clk 0:00:32.3]} 43. b7 {[%clk 0:00:18.8]}
43... g3 {[%clk 0:00:23.8]} 44. fxg3 {[%clk 0:00:18.5]} 44... hxg3 {[%clk
0:00:24.7]} 45. Ke1 {[%clk 0:00:12.1]} 45... f4 {[%clk 0:00:23.7]} 46. Kf1
{[%clk 0:00:12.6]} 46... Kf6 {[%clk 0:00:23.1]} 47. h4 {[%clk 0:00:12.8]} 47...
Kg7 {[%clk 0:00:20.1]} 48. h5 {[%clk 0:00:12.1]} 48... Kh7 {[%clk 0:00:18.1]}
49. Ke1 {[%clk 0:00:12.1]} 49... f3 {[%clk 0:00:18]} 50. Rf8 {[%clk 0:00:03]}
50... fxg2 {[%clk 0:00:14.9]} 51. Rxf7+ {[%clk 0:00:02.7]} 51... Kh6 {[%clk
0:00:15.3]} 0-1